fUST/lending_fUST_20260625
["ID","MTS","AMOUNT","RATE_DAILY","PERIOD"]
[426395419,1782345041000,-1005.0,0.00036287,14]
[426395417,1782345041000,-1005.0,0.00036287,14]
[426395427,1782345041000,-1005.0,0.00036287,14]
[426395433,1782345041000,-1005.0,0.00036287,14]
[426395423,1782345041000,-1005.0,0.00036287,14]
[426395435,1782345041000,-1005.0,0.00036287,14]
[426395429,1782345041000,-1005.0,0.00036287,14]
[426395431,1782345041000,-1005.0,0.00036287,14]
[426395425,1782345041000,-1005.0,0.00036287,14]
[426395437,1782345041000,-2890.29927,0.00036287,7]
[426395438,1782345041000,-2890.29927,0.00036287,7]
[426395440,1782345041000,-2890.29927,0.00036287,7]
[426395446,1782345041000,-775.24408793,0.00036321,2]
[426395444,1782345041000,-978.19467132,0.00036321,2]
[426395442,1782345041000,-2890.29927,0.00036287,7]
[426395450,1782345041000,-984.3906132,0.00036321,2]
[426395448,1782345041000,-984.77517209,0.00036321,2]
[426395458,1782345041000,-1157.08151306,0.00036321,2]
[426395454,1782345041000,-919.01319066,0.00036321,2]
[426395452,1782345041000,-955.76674055,0.00036321,2]
[426395402,1782345041000,-1005.0,0.00036287,14]
[426395404,1782345041000,-1005.0,0.00036287,14]
[426395456,1782345041000,-873.60419949,0.00036321,2]
[426395398,1782345041000,-1005.0,0.00036287,14]
[426395400,1782345041000,-1005.0,0.00036287,14]
[426395340,1782345041000,-444.2464447,0.00035885,2]
[426395342,1782345041000,-554.32907834,0.00035885,2]
[426395338,1782345041000,-925.66521045,0.00035885,2]
[426395347,1782345041000,-804.36913468,0.00035885,2]
[426395343,1782345041000,-713.17167402,0.00035885,2]
[426395345,1782345041000,-814.20488253,0.00035885,2]
[426395349,1782345041000,-492.5923967,0.00035885,2]
[426395351,1782345041000,-633.69055335,0.00035885,2]
[426395361,1782345041000,-150.0,0.000359,120]
[426395353,1782345041000,-661.53910091,0.00035885,2]
[426395357,1782345041000,-765.88305702,0.00035885,2]
[426395355,1782345041000,-680.40490945,0.00035885,2]
[426395359,1782345041000,-652.07055528,0.00035885,2]
[426395369,1782345041000,-921.18606333,0.00036252,2]
[426395334,1782345041000,-724.69398337,0.00035885,2]
[426395367,1782345041000,-1308.32492249,0.00036252,2]
[426395392,1782345041000,-1005.0,0.00036287,14]
[426395394,1782345041000,-1005.0,0.00036287,14]
[426395390,1782345041000,-1005.0,0.00036287,14]
[426395388,1782345041000,-1005.0,0.00036287,14]
[426395365,1782345041000,-775.20063097,0.00036252,2]
[426395375,1782345041000,-898.24471683,0.00036255,2]
[426395380,1782345041000,-294.216758,0.0003627,21]
[426395378,1782345041000,-176.0963,0.0003627,21]
[426395386,1782345041000,-1005.0,0.00036287,14]
[426395382,1782345041000,-13855.59508,0.0003627,2]
[426395384,1782345041000,-166.0,0.00036287,14]
[426395372,1782345041000,-860.98520921,0.00036252,2]
[426395363,1782345041000,-1000.0,0.00036108,2]
[426395371,1782345041000,-545.88986393,0.00036252,2]
[426395376,1782345041000,-190.908138,0.0003627,21]
[426395558,1782345042000,-500.0,0.00037356,60]
[426395560,1782345042000,-500.0,0.00037356,60]
[426395556,1782345042000,-500.0,0.00037356,60]
[426395545,1782345042000,-151.0,0.0003701,7]
[426395543,1782345042000,-151.0,0.0003701,7]
[426395528,1782345042000,-4893.385955,0.0003701,7]
[426395532,1782345042000,-4893.385955,0.0003701,7]
[426395535,1782345042000,-2878.902765,0.0003701,7]
[426395530,1782345042000,-4893.385955,0.0003701,7]
[426395534,1782345042000,-4893.385955,0.0003701,7]
[426395541,1782345042000,-2878.902765,0.0003701,7]
[426395539,1782345042000,-2878.902765,0.0003701,7]
[426395562,1782345042000,-500.0,0.00037356,60]
[426395568,1782345042000,-500.0,0.00037356,60]
[426395564,1782345042000,-500.0,0.00037356,60]
[426395591,1782345042000,-223.757117,0.00037613,7]
[426395572,1782345042000,-500.0,0.00037356,60]
[426395589,1782345042000,-223.757117,0.00037613,7]
[426395581,1782345042000,-1250.993567,0.00037613,2]
[426395583,1782345042000,-1250.993567,0.00037613,2]
[426395587,1782345042000,-223.757117,0.00037613,7]
[426395547,1782345042000,-2890.29927,0.0003701,7]
[426395570,1782345042000,-500.0,0.00037356,60]
[426395551,1782345042000,-2890.29927,0.0003701,7]
[426395524,1782345042000,-1621.480723,0.0003701,7]
[426395566,1782345042000,-500.0,0.00037356,60]
[426395554,1782345042000,-3380.99466206,0.00037101,2]
[426395549,1782345042000,-2890.29927,0.0003701,7]
[426395552,1782345042000,-2890.29927,0.0003701,7]
[426395585,1782345042000,-1250.993567,0.00037613,2]
[426395522,1782345042000,-1621.480723,0.0003701,7]
[426395513,1782345042000,-1367.871748,0.0003701,7]
[426395517,1782345042000,-1367.871748,0.0003701,7]
[426395576,1782345042000,-541.793896,0.0003756,120]
[426395462,1782345042000,-850.50613682,0.00036321,2]
[426395464,1782345042000,-826.92387613,0.00036321,2]
[426395466,1782345042000,-957.35382127,0.00036321,2]
[426395472,1782345042000,-151.0,0.00036321,7]
[426395470,1782345042000,-971.81820236,0.00036321,2]
[426395474,1782345042000,-282.721845,0.00036321,7]
[426395476,1782345042000,-151.0,0.000366,11]
[426395484,1782345042000,-1033.18225106,0.00036904,2]
[426395478,1782345042000,-150.0,0.000369,120]
[426395487,1782345042000,-1077.8936602,0.00036907,2]
[426395468,1782345042000,-815.08819409,0.00036321,2]
[426395480,1782345042000,-1569.98990699,0.00036904,2]
[426395482,1782345042000,-1105.423276,0.00036904,2]
[426395491,1782345042000,-1102.81582879,0.00036974,2]
[426395485,1782345042000,-363.92657595,0.00036904,2]
[426395489,1782345042000,-151.91800977,0.0003691,22]
[426395501,1782345042000,-978.10583291,0.00036974,2]
[426395495,1782345042000,-1388.49781567,0.00036974,2]
[426395497,1782345042000,-1069.75751103,0.00036974,2]
[426395503,1782345042000,-294.216758,0.0003701,21]
[426395499,1782345042000,-1020.60736418,0.00036974,2]
[426395507,1782345042000,-190.908138,0.0003701,120]
[426395505,1782345042000,-86431.774679,0.0003701,2]
[426395511,1782345042000,-151.0,0.0003701,7]
[426395515,1782345042000,-1367.871748,0.0003701,7]
[426395518,1782345042000,-1367.871748,0.0003701,7]
[426395520,1782345042000,-1621.480723,0.0003701,7]
[426395537,1782345042000,-2878.902765,0.0003701,7]
[426395526,1782345042000,-1621.480723,0.0003701,7]
[426395493,1782345042000,-1048.32503939,0.00036974,2]
[426395578,1782345042000,-177.484208,0.0003756,21]
[426395579,1782345042000,-1250.993567,0.00037613,2]
[426395656,1782345042000,-244008.81546738,0.00038327,2]
[426395662,1782345042000,-1621.480723,0.00038327,7]
[426395666,1782345042000,-4893.385955,0.00038327,7]
[426395658,1782345042000,-1621.480723,0.00038327,7]
[426395660,1782345042000,-1621.480723,0.00038327,7]
[426395664,1782345042000,-1621.480723,0.00038327,7]
[426395671,1782345042000,-4893.385955,0.00038327,7]
[426395669,1782345042000,-4893.385955,0.00038327,7]
[426395672,1782345042000,-4893.385955,0.00038327,7]
[426395675,1782345042000,-2878.902765,0.00038327,7]
[426395676,1782345042000,-2878.902765,0.00038327,7]
[426395680,1782345042000,-2878.902765,0.00038327,7]
[426395678,1782345042000,-2878.902765,0.00038327,7]
[426395682,1782345042000,-151.0,0.00038327,7]
[426395686,1782345042000,-2890.29927,0.00038327,7]
[426395695,1782345042000,-349.139294,0.00038356,120]
[426395692,1782345042000,-2890.29927,0.00038327,7]
[426395688,1782345042000,-2890.29927,0.00038327,7]
[426395690,1782345042000,-2890.29927,0.00038327,7]
[426395698,1782345042000,-349.139294,0.00038356,120]
[426395704,1782345042000,-349.139294,0.00038356,120]
[426395701,1782345042000,-349.139294,0.00038356,120]
[426395703,1782345042000,-349.139294,0.00038356,120]
[426395708,1782345042000,-349.139294,0.00038356,120]
[426395706,1782345042000,-349.139294,0.00038356,120]
[426395715,1782345042000,-349.139294,0.00038356,120]
[426395713,1782345042000,-349.139294,0.00038356,120]
[426395717,1782345042000,-349.139294,0.00038356,120]
[426395574,1782345042000,-521.37739847,0.00037356,60]
[426395652,1782345042000,-445.0,0.00038147,2]
[426395654,1782345042000,-151.78,0.000383,120]
[426395684,1782345042000,-151.0,0.00038327,7]
[426395647,1782345042000,-1419.0,0.00038147,2]
[426395649,1782345042000,-1842.0,0.00038147,2]
[426395595,1782345042000,-151.0,0.00037613,7]
[426395601,1782345042000,-1900.340116,0.00037613,7]
[426395597,1782345042000,-1900.340116,0.00037613,7]
[426395603,1782345042000,-1900.340116,0.00037613,7]
[426395616,1782345042000,-151.0,0.00037613,7]
[426395599,1782345042000,-1900.340116,0.00037613,7]
[426395608,1782345042000,-279.969878,0.00037613,7]
[426395606,1782345042000,-279.969878,0.00037613,7]
[426395610,1782345042000,-151.0,0.00037613,7]
[426395612,1782345042000,-279.969878,0.00037613,7]
[426395604,1782345042000,-279.969878,0.00037613,7]
[426395614,1782345042000,-151.0,0.00037613,7]
[426395618,1782345042000,-151.0,0.00037765,7]
[426395622,1782345042000,-151.0,0.00037765,7]
[426395593,1782345042000,-223.757117,0.00037613,7]
[426395635,1782345042000,-181.96328798,0.00037954,2]
[426395620,1782345042000,-151.0,0.00037765,7]
[426395637,1782345042000,-1223.04587929,0.00037954,2]
[426395626,1782345042000,-1831.65489149,0.00037882,2]
[426395639,1782345042000,-1619.91411828,0.00037954,2]
[426395641,1782345042000,-151.0,0.00038,15]
[426395629,1782345042000,-150.0,0.000379,120]
[426395627,1782345042000,-1289.66048866,0.00037882,2]
[426395643,1782345042000,-177.159752,0.00038021,2]
[426395624,1782345042000,-353.125,0.00037841,5]
[426395631,1782345042000,-3380.99466202,0.00037912,2]
[426395633,1782345042000,-168.142933,0.00037936,21]
[426395651,1782345042000,-871.564,0.00038147,2]
[426395645,1782345042000,-1916.0,0.00038147,2]
[426395806,1782345043000,-2046.47,0.00038762,120]
[426395802,1782345043000,-151.91800977,0.00038709,24]
[426395786,1782345043000,-151.0,0.00038381,120]
[426395812,1782345043000,-175.12445426,0.00039,120]
[426395811,1782345043000,-150.0,0.000389,120]
[426395800,1782345043000,-1367.871748,0.00038381,120]
[426395788,1782345043000,-279.969878,0.00038381,120]
[426395784,1782345043000,-279.969878,0.00038381,120]
[426395798,1782345043000,-1367.871748,0.00038381,120]
[426395804,1782345043000,-3380.99466202,0.00038723,2]
[426395794,1782345043000,-1367.871748,0.00038381,120]
[426395792,1782345043000,-151.0,0.00038381,120]
[426395814,1782345043000,-1847.73163648,0.00039,120]
[426395796,1782345043000,-1367.871748,0.00038381,120]
[426395816,1782345043000,-189.268872,0.00039102,21]
[426395824,1782345043000,-1473.89770133,0.00039348,2]
[426395818,1782345043000,-151.78,0.000393,120]
[426395828,1782345043000,-3380.99466202,0.00039533,2]
[426395809,1782345043000,-151.78,0.000388,120]
[426395822,1782345043000,-2093.31987599,0.00039348,2]
[426395830,1782345043000,-200.0,0.0003977,65]
[426395826,1782345043000,-1851.3304209,0.00039424,2]
[426395832,1782345043000,-230.35,0.0003977,65]
[426395834,1782345043000,-151.78,0.000398,120]
[426395836,1782345043000,-72785.43558281,0.000399,30]
[426395850,1782345043000,-223.757117,0.000399,120]
[426395838,1782345043000,-151.0,0.000399,120]
[426395844,1782345043000,-1250.993567,0.000399,2]
[426395842,1782345043000,-1250.993567,0.000399,2]
[426395820,1782345043000,-797.0,0.000393,2]
[426395762,1782345043000,-223.757117,0.00038381,120]
[426395856,1782345043000,-223.757117,0.000399,120]
[426395766,1782345043000,-223.757117,0.00038381,120]
[426395719,1782345043000,-349.139294,0.00038356,120]
[426395722,1782345043000,-349.139294,0.00038356,120]
[426395725,1782345043000,-349.139294,0.00038356,120]
[426395727,1782345043000,-349.139294,0.00038356,120]
[426395729,1782345043000,-349.139294,0.00038356,120]
[426395733,1782345043000,-1584.01,0.00038356,60]
[426395731,1782345043000,-349.139294,0.00038356,120]
[426395735,1782345043000,-487.0,0.00038381,2]
[426395737,1782345043000,-487.0,0.00038381,2]
[426395741,1782345043000,-487.0,0.00038381,2]
[426395739,1782345043000,-487.0,0.00038381,2]
[426395751,1782345043000,-151.0,0.00038381,120]
[426395745,1782345043000,-487.0,0.00038381,2]
[426395747,1782345043000,-487.0,0.00038381,2]
[426395743,1782345043000,-487.0,0.00038381,2]
[426395748,1782345043000,-747.82,0.00038381,2]
[426395752,1782345043000,-151.0,0.00038381,120]
[426395754,1782345043000,-1250.993567,0.00038381,2]
[426395770,1782345043000,-151.0,0.00038381,120]
[426395768,1782345043000,-223.757117,0.00038381,120]
[426395772,1782345043000,-1900.340116,0.00038381,28]
[426395774,1782345043000,-1900.340116,0.00038381,28]
[426395756,1782345043000,-1250.993567,0.00038381,2]
[426395776,1782345043000,-1900.340116,0.00038381,28]
[426395760,1782345043000,-1250.993567,0.00038381,2]
[426395758,1782345043000,-1250.993567,0.00038381,2]
[426395782,1782345043000,-279.969878,0.00038381,120]
[426395778,1782345043000,-1900.340116,0.00038381,28]
[426395764,1782345043000,-223.757117,0.00038381,120]
[426395780,1782345043000,-279.969878,0.00038381,120]
[426395840,1782345043000,-151.0,0.000399,120]
[426395790,1782345043000,-151.0,0.00038381,120]
[426395852,1782345043000,-223.757117,0.000399,120]
[426395923,1782345043000,-151.0,0.000399,120]
[426395927,1782345043000,-2890.29927,0.000399,120]
[426395925,1782345043000,-349.139299,0.000399,120]
[426395917,1782345043000,-349.139294,0.000399,120]
[426395936,1782345043000,-164.87444515,0.00040144,2]
[426395919,1782345043000,-349.139294,0.000399,120]
[426395928,1782345043000,-2890.29927,0.000399,120]
[426395932,1782345043000,-2890.29927,0.000399,120]
[426395938,1782345043000,-9728.98868269,0.00040173,2]
[426395940,1782345043000,-175.12445426,0.000402,120]
[426395931,1782345043000,-2890.29927,0.000399,120]
[426395934,1782345043000,-200.0,0.00040006,68]
[426395944,1782345043000,-200.0,0.00040233,72]
[426395942,1782345043000,-1847.73163648,0.000402,120]
[426395954,1782345043000,-151.29230756,0.00040273,30]
[426395951,1782345043000,-1000.0,0.00040273,2]
[426395947,1782345043000,-1000.0,0.00040273,2]
[426395952,1782345043000,-1008.92885946,0.00040273,2]
[426395948,1782345043000,-1000.0,0.00040273,2]
[426395958,1782345043000,-325.73432,0.00040273,30]
[426395956,1782345043000,-500.0,0.00040273,30]
[426395962,1782345043000,-1000.0,0.00040273,2]
[426395960,1782345043000,-1000.0,0.00040273,2]
[426395964,1782345043000,-1000.0,0.00040273,2]
[426395968,1782345043000,-1000.0,0.00040273,2]
[426395966,1782345043000,-1000.0,0.00040273,2]
[426395970,1782345043000,-1000.0,0.00040273,2]
[426395975,1782345043000,-1000.0,0.00040273,2]
[426395979,1782345043000,-1000.0,0.00040273,2]
[426395921,1782345043000,-349.139294,0.000399,120]
[426395915,1782345043000,-150.0,0.000399,120]
[426395973,1782345043000,-1000.0,0.00040273,2]
[426395905,1782345043000,-2878.902765,0.000399,120]
[426395913,1782345043000,-151.0,0.000399,120]
[426395848,1782345043000,-1250.993567,0.000399,2]
[426395846,1782345043000,-1250.993567,0.000399,2]
[426395858,1782345043000,-151.0,0.000399,120]
[426395860,1782345043000,-1900.340116,0.000399,28]
[426395863,1782345043000,-1900.340116,0.000399,28]
[426395874,1782345043000,-279.969878,0.000399,120]
[426395868,1782345043000,-279.969878,0.000399,120]
[426395876,1782345043000,-279.969878,0.000399,120]
[426395880,1782345043000,-151.0,0.000399,120]
[426395864,1782345043000,-1900.340116,0.000399,28]
[426395882,1782345043000,-1367.871748,0.000399,120]
[426395878,1782345043000,-151.0,0.000399,120]
[426395866,1782345043000,-1900.340116,0.000399,28]
[426395872,1782345043000,-151.0,0.000399,120]
[426395854,1782345043000,-223.757117,0.000399,120]
[426395884,1782345043000,-1367.871748,0.000399,120]
[426395870,1782345043000,-279.969878,0.000399,120]
[426395977,1782345043000,-1000.0,0.00040273,2]
[426395911,1782345043000,-2878.902765,0.000399,120]
[426395903,1782345043000,-4893.385955,0.000399,120]
[426395907,1782345043000,-2878.902765,0.000399,120]
[426395901,1782345043000,-4893.385955,0.000399,120]
[426395909,1782345043000,-2878.902765,0.000399,120]
[426395891,1782345043000,-1621.480723,0.000399,120]
[426395895,1782345043000,-1621.480723,0.000399,120]
[426395897,1782345043000,-4893.385955,0.000399,120]
[426395899,1782345043000,-4893.385955,0.000399,120]
[426395889,1782345043000,-1621.480723,0.000399,120]
[426395887,1782345043000,-1367.871748,0.000399,120]
[426395886,1782345043000,-1367.871748,0.000399,120]
[426395893,1782345043000,-1621.480723,0.000399,120]
[426395995,1782345044000,-500.0,0.00040273,30]
[426395997,1782345044000,-500.0,0.00040273,30]
[426395993,1782345044000,-502.40695595,0.00040273,10]
[426395991,1782345044000,-1026.3176835,0.00040273,2]
[426395985,1782345044000,-1000.0,0.00040273,2]
[426395987,1782345044000,-1000.0,0.00040273,2]
[426395983,1782345044000,-1000.0,0.00040273,2]
[426396001,1782345044000,-558.09301169,0.00040273,30]
[426395989,1782345044000,-1000.0,0.00040273,2]
[426396003,1782345044000,-2890.29927,0.00040273,120]
[426395981,1782345044000,-1000.0,0.00040273,2]
[426396007,1782345044000,-2890.29927,0.00040273,120]
[426396005,1782345044000,-2890.29927,0.00040273,120]
[426396034,1782345044000,-3100.0,0.00040444,30]
[426396036,1782345044000,-365.23468669,0.00040444,30]
[426396030,1782345044000,417.15472785,0.00029036,30]
[426396014,1782345044000,-1361.00073323,0.00040379,66]
[426395999,1782345044000,-500.0,0.00040273,30]
[426396020,1782345044000,-711427.09741936,0.00040444,30]
[426396018,1782345044000,-796.9660808,0.000404,2]
[426396016,1782345044000,-202.630742,0.000404,2]
[426396012,1782345044000,-3380.99466202,0.00040344,2]
[426396010,1782345044000,-151.78,0.000403,120]
[426396009,1782345044000,-2890.29927,0.00040273,120]
[426396212,1782345047000,-6745.654063,0.00040444,30]
[426396227,1782345124000,160.0,0.00029036,30]
[426396243,1782345330000,1000.0,0.00024595,30]
[426396245,1782345378000,306.10693531,2.01e-05,2]
[426396249,1782345438000,250.0,0.00030137,30]
[426396250,1782345444000,-458.60685908,0.00013,2]
[426396251,1782345444000,-41.39701,0.00015,2]
[426396252,1782345453000,7260.55744871,7.6e-05,2]
[426396253,1782345459000,250.0,0.00030137,30]
[426396255,1782345460000,2563.89041236,0.0001,2]
[426396254,1782345460000,612.94509564,0.0001,2]
[426396256,1782345471000,-154.65584298,0.00012,2]
[426396257,1782345472000,-346.45016202,0.00012,2]
[426396259,1782345501000,-345.34415702,0.00012,2]
[426396260,1782345502000,-344.23834432,0.00012,2]
[426396262,1782345516000,-155.76165568,0.00011999,2]
[426396263,1782345517000,-344.23834432,0.00011999,2]
[426396264,1782345517000,-155.76165568,0.00011999,2]
[426396265,1782345546000,-154.65584298,0.00011999,2]
[426396266,1782345547000,-153.54983798,0.00011999,2]
[426396268,1782345548000,-154.65565068,0.00011999,2]
[426396267,1782345548000,-36.03266336,0.00011999,2]
[426396270,1782345549000,-154.65565068,0.00011999,2]
[426396269,1782345549000,-191.79451134,0.00011999,2]
[426396271,1782345550000,-154.65584298,0.00011999,2]
[426396273,1782345571000,1000.0,0.00026235,30]
[426396274,1782345571000,1000.0,0.00026235,30]
[426396276,1782345572000,1000.0,0.00028859,30]
[426396275,1782345572000,579.0,0.00026235,30]
[426396278,1782345573000,1000.0,0.00028859,30]
[426396277,1782345573000,1000.0,0.00028859,30]
[426396280,1782345576000,-153.54983798,0.00011999,2]
[426396279,1782345576000,-190.68850634,0.00011999,2]
[426396281,1782345577000,-346.45016202,0.00011999,2]
[426396282,1782345577000,-153.54983798,0.00011999,2]
[426396283,1782345578000,-191.79431904,0.00011999,2]
[426396284,1782345606000,-300.0,0.00011999,2]
[426396285,1782345606000,-45.34415702,0.00011999,2]
[426396286,1782345607000,-109.31168596,0.00011999,2]
[426396287,1782345607000,-390.68831404,0.00011999,2]
[426396288,1782345609000,-109.31168596,0.00011999,2]
[426396289,1782345609000,-44.23815202,0.00011999,2]
[426396291,1782345636000,-154.65584298,0.00011999,2]
[426396292,1782345637000,-151.91244951,0.00012,2]
[426396295,1782345703000,-0.55765896,0.00011879,2]
[426396297,1782345720000,-151.35479055,0.00011879,2]
[426396298,1782345737000,-747.44453478,0.00012,2]
[426396299,1782345754000,-151.35479055,0.00012,2]
[426396304,1782345947000,-213.35375169,0.0001176,2]
[426396305,1782345956000,459.568673,0.00030129,30]
[426396309,1782346011000,-537.22849826,0.0001176,2]
[426396310,1782346012000,-588.53027313,0.0001176,2]
[426396311,1782346036000,-283.14906601,0.00011642,13]
[426396312,1782346056000,-2107.2544964,0.00011526,13]
[426396313,1782346056000,-888.29907491,0.00011642,13]
[426396314,1782346071000,-685.37100478,0.00011642,2]
[426396315,1782346072000,-200.0,0.00011642,2]
[426396323,1782346146000,-4114.62899522,0.00011642,2]
[426396320,1782346146000,-151.0,0.0001118,2]
[426396322,1782346146000,-885.37100478,0.00011526,2]
[426396321,1782346146000,-2339.75284914,0.00011411,2]
[426396324,1782346146000,-500.0,0.00011999,2]
[426396327,1782346146000,-291.61965571,0.00011999,2]
[426396326,1782346146000,-500.0,0.00011999,2]
[426396328,1782346146000,-16120.33228584,0.00012,2]
[426396325,1782346146000,-500.0,0.00011999,2]
[426396330,1782346147000,-26924.80542531,0.00012,2]
[426396329,1782346147000,-26006.4949844,0.00012,2]
[426396332,1782346160000,-16404.13560925,0.00012,2]
[426396331,1782346160000,-714.39103505,0.0001188,2]
[426396344,1782346163000,-636.04150265,0.00012236,2]
[426396343,1782346163000,-636.04150265,0.00012236,2]
[426396342,1782346163000,-636.04150265,0.00012236,2]
[426396341,1782346163000,-636.04150265,0.00012236,2]
[426396340,1782346163000,-636.04150265,0.00012236,2]
[426396338,1782346163000,-636.04150265,0.00012236,2]
[426396334,1782346163000,-7259.89222847,0.00012136,2]
[426396337,1782346163000,-636.04150265,0.00012236,2]
[426396336,1782346163000,-636.04150265,0.00012236,2]
[426396335,1782346163000,-467.51123361,0.00012236,2]
[426396333,1782346163000,-768.55220072,0.00012,2]
[426396339,1782346163000,-636.04150265,0.00012236,2]
[426396345,1782346163000,-636.04150265,0.00012236,2]
[426396354,1782346163000,-683.74461536,0.00012236,2]
[426396347,1782346163000,-636.04150265,0.00012236,2]
[426396359,1782346163000,-164.89914193,0.00012236,2]
[426396346,1782346163000,-636.04150265,0.00012236,2]
[426396358,1782346163000,-683.74461536,0.00012236,2]
[426396357,1782346163000,-683.74461536,0.00012236,2]
[426396355,1782346163000,-683.74461536,0.00012236,2]
[426396356,1782346163000,-683.74461536,0.00012236,2]
[426396352,1782346163000,-683.74461536,0.00012236,2]
[426396351,1782346163000,-683.74461536,0.00012236,2]
[426396350,1782346163000,-683.74461536,0.00012236,2]
[426396349,1782346163000,-636.04150265,0.00012236,2]
[426396348,1782346163000,-636.04150265,0.00012236,2]
[426396353,1782346163000,-683.74461536,0.00012236,2]
[426396374,1782346166000,-300.0,0.00012239,2]
[426396368,1782346166000,-300.0,0.00012239,2]
[426396372,1782346166000,-300.0,0.00012239,2]
[426396371,1782346166000,-300.0,0.00012239,2]
[426396369,1782346166000,-300.0,0.00012239,2]
[426396370,1782346166000,-300.0,0.00012239,2]
[426396367,1782346166000,-300.0,0.00012239,2]
[426396362,1782346166000,-300.0,0.00012239,2]
[426396365,1782346166000,-300.0,0.00012239,2]
[426396364,1782346166000,-300.0,0.00012239,2]
[426396363,1782346166000,-300.0,0.00012239,2]
[426396361,1782346166000,-863.50328035,0.00012236,2]
[426396360,1782346166000,-698.60413842,0.00012236,2]
[426396373,1782346166000,-300.0,0.00012239,2]
[426396366,1782346166000,-300.0,0.00012239,2]
[426396377,1782346166000,-600.0,0.00012239,2]
[426396390,1782346166000,-15103.90086628,0.00018,2]
[426396376,1782346166000,-300.0,0.00012239,2]
[426396375,1782346166000,-300.0,0.00012239,2]
[426396393,1782346166000,-15685.776294,0.0002,2]
[426396391,1782346166000,-1000.0,0.00019711,2]
[426396389,1782346166000,-244.0,0.00017919,2]
[426396388,1782346166000,-1000.0,0.00017919,2]
[426396387,1782346166000,-2035.37100478,0.000176,2]
[426396386,1782346166000,-3009.84609152,0.00017,2]
[426396392,1782346166000,-492.0,0.00019711,2]
[426396385,1782346166000,-1000.0,0.0001629,2]
[426396383,1782346166000,-198.21,0.00015068,2]
[426396381,1782346166000,-407.97163898,0.00015,2]
[426396382,1782346166000,-214.869012,0.00015068,2]
[426396380,1782346166000,-864.0,0.00014809,2]
[426396378,1782346166000,-720.0,0.00013463,2]
[426396379,1782346166000,-500.0,0.00013698,2]
[426396384,1782346166000,-320.264876,0.00015109,2]
[426396396,1782346171000,-69894.71640399,0.0002,2]
[426396395,1782346171000,-43541.47846031,0.0002,2]
[426396394,1782346171000,-172.70065607,0.00012236,2]
[426396401,1782346207000,1000.0,0.00029866,30]
[426396400,1782346207000,1000.0,0.00027151,30]
[426396402,1782346208000,244.0,0.00029866,30]
[426396436,1782346232000,-332.65923859,0.00019999,2]
[426396430,1782346232000,-500.0,0.00019999,2]
[426396437,1782346232000,-500.0,0.00019999,2]
[426396440,1782346232000,-500.0,0.00019999,2]
[426396442,1782346232000,-500.0,0.00019999,2]
[426396428,1782346232000,-327.25786352,0.00019999,2]
[426396433,1782346232000,-167.34076141,0.00019999,2]
[426396461,1782346232000,-515.7980477,0.0002,2]
[426396444,1782346232000,-500.0,0.00019999,2]
[426396446,1782346232000,-156.88858826,0.0002,2]
[426396452,1782346232000,-500.0,0.00019999,2]
[426396454,1782346232000,-500.0,0.00019999,2]
[426396456,1782346232000,-2425.23853558,0.0002,2]
[426396458,1782346232000,-433.45811007,0.0002,2]
[426396432,1782346232000,-500.0,0.00019999,2]
[426396553,1782346238000,-500.0,0.00019999,2]
[426396555,1782346238000,-500.0,0.00019999,2]
[426396557,1782346238000,-500.0,0.00019999,2]
[426396561,1782346238000,-500.0,0.00019999,2]
[426396563,1782346238000,-500.0,0.00019999,2]
[426396559,1782346238000,-500.0,0.00019999,2]
[426396569,1782346239000,-128555.69242226,0.0002,2]
[426396567,1782346239000,-500.0,0.00019999,2]